[Event "Cebanenco Memorial 2019"]
[Site "Chisinau"]
[Date "2019.05.09"]
[Round "3.1"]
[White "Macovei, Andrei"]
[Black "Fedorov, Alexei"]
[Result "0-1"]
[ECO "B42"]
[WhiteElo "2432"]
[BlackElo "2566"]
[Annotator "ChessBase"]
[PlyCount "82"]
[EventDate "2019.05.07"]
[EventCountry "MDA"]
[SourceTitle "playchess.com"]
[Source "ChessBase"]
[SourceQuality "1"]
[TimeControl "5400+30"]

1. e4 {[%emt 0:00:00]} c5 {[%emt 0:00:00]} 2. Nf3 {[%emt 0:00:06]} e6 {[%emt 0:00:00]} 3. d4 {[%emt 0:00:10]} cxd4 {[%emt 0:00:00]} 4. Nxd4 {[%emt 0:00:04]} a6 {[%emt 0:00:03]} 5. Bd3 {[%emt 0:03:19]} Ne7 {[%emt 0:01:12]} 6. O-O {[%emt 0:00:59]} Nbc6 {[%emt 0:00:53]} 7. Nb3 {[%emt 0:00:16]} g6 {[%emt 0:07:03]} 8. c4 {[%emt 0:00:12]} Bg7 {[%emt 0:00:06]} 9. Nc3 {[%emt 0:00:05]} O-O {[%emt 0:01:27]} 10. Be2 {[%emt 0:00:03]} f5 {[%emt 0:07:31]} 11. Bg5 {[%emt 0:00:27]} h6 {[%emt 0:04:05]} 12. Be3 {[%emt 0:00:36]} fxe4 {[%emt 0:02:44]} 13. c5 {[%emt 0:10:05]} b6 {[%emt 0:17:26]} 14. Nxe4 {[%emt 0:03:07]} Nd5 {[%emt 0:06:00]} 15. Qd2 {[%emt 0:23:45]} Qh4 {[%emt 0:03:22]} 16. Nd6 {[%emt 0:14:05]} bxc5 {[%emt 0:26:08]} 17. Bxc5 {[%emt 0:17:38]} a5 {[%emt 0:10:04]} 18. Nxc8 {[%emt 0:00:30]} Rfxc8 {[%emt 0:00:30]} 19. Bf3 {[%emt 0:00:30]} Qg5 {[%emt 0:00:30]} 20. Qxg5 {[%emt 0:00:30]} hxg5 {[%emt 0:00:30]} 21. Bxd5 {[%emt 0:00:30]} exd5 {[%emt 0:00:30]} 22. Rad1 {[%emt 0:00:30]} a4 {[%emt 0:00:30]} 23. Nc1 {[%emt 0:00:34]} Bxb2 {[%emt 0:03:49]} 24. Be3 {[%emt 0:08:29]} d4 {[%emt 0:01:52]} 25. Bxg5 {[%emt 0:01:05]} Nb4 {[%emt 0:01:16]} 26. Nd3 {[%emt 0:06:10]} Nxd3 {[%emt 0:00:06]} 27. Rxd3 {[%emt 0:00:00]} Rc2 {[%emt 0:00:39]} 28. h4 {[%emt 0:04:48]} a3 {[%emt 0:01:09]} 29. Rd2 {[%emt 0:00:54]} Rac8 {[%emt 0:00:52]} 30. Rfd1 {[%emt 0:01:44]} Kf7 {[%emt 0:00:37]} 31. Kh2 {[%emt 0:01:06]} Ke6 {[%emt 0:00:30]} 32. g4 {[%emt 0:00:45]} Rxd2 {[%emt 0:02:13]} 33. Rxd2 {[%emt 0:00:05]} Kd5 {[%emt 0:00:45]} 34. Kg3 {[%emt 0:00:48]} Bc1 {[%emt 0:00:42]} 35. Re2 {[%emt 0:02:27]} d3 {[%emt 0:00:36]} 36. Re7 {[%emt 0:00:57]} d6 {[%emt 0:00:36]} 37. Re1 {[%emt 0:00:32]} Bxg5 {[%emt 0:00:34]} 38. hxg5 {[%emt 0:00:01]} Kd4 {[%emt 0:00:23]} 39. f4 {[%emt 0:00:38]} d2 {[%emt 0:00:13]} 40. Rd1 {[%emt 0:00:00]} Ke3 {[%emt 0:00:00]} 41. f5 {[%emt 0:00:00]} Rc1 {[%emt 0:00:00]} 0-1

[Event "Cebanenco Memorial 2019"]
[Site "Chisinau"]
[Date "2019.05.09"]
[Round "3.2"]
[White "Morozov, Nichita"]
[Black "Smirin, Ilia"]
[Result "*"]
[ECO "E73"]
[WhiteElo "2371"]
[BlackElo "2605"]
[Annotator "RC"]
[PlyCount "21"]
[EventDate "2019.05.07"]
[EventCountry "MDA"]
[SourceTitle "playchess.com"]
[Source "ChessBase"]
[SourceQuality "1"]
[TimeControl "5400+30"]

1. d4 {[%emt 0:00:28]} Nf6 {[%emt 0:05:38]} 2. c4 {[%emt 0:00:43]} g6 {[%emt 0:00:31]} 3. Nc3 {[%emt 0:00:30]} Bg7 {[%emt 0:00:30]} 4. e4 {[%emt 0:00:30]} d6 {[%emt 0:00:30]} 5. Be2 {[%emt 0:00:30]} O-O {[%emt 0:00:39]} 6. h4 {[%emt 0:00:04]} Nc6 {[%emt 0:04:33]} 7. d5 {[%emt 0:36:50]} Ne5 {[%emt 0:00:30]} 8. h5 {[%emt 0:00:30]} c6 {[%emt 0:00:30]} 9. Nf3 {[%emt 0:00:30]} Neg4 {[%emt 0:00:30]} 10. Nd4 {[%emt 0:00:30]} Qb6 {[%emt 0:00:30]} 11. Na4 {[%emt 0:00:30]} *

[Event "Cebanenco Memorial 2019"]
[Site "Chisinau"]
[Date "2019.05.09"]
[Round "3.4"]
[White "Hamitevici, Vladimir"]
[Black "Lashkin, Jegor"]
[Result "0-1"]
[ECO "A13"]
[WhiteElo "2476"]
[BlackElo "2313"]
[Annotator "ChessBase"]
[PlyCount "27"]
[EventDate "2019.05.07"]
[EventCountry "MDA"]
[SourceTitle "playchess.com"]
[Source "ChessBase"]
[SourceQuality "1"]
[TimeControl "5400+30"]

1. e3 {[%emt 0:02:18]} d5 {[%emt 0:00:41]} 2. Nf3 {[%emt 0:00:28]} Nf6 {[%emt 0:01:50]} 3. c4 {[%emt 0:00:17]} e6 {[%emt 0:01:17]} 4. Nc3 {[%emt 0:00:40]} Be7 {[%emt 0:06:57]} 5. b3 {[%emt 0:00:25]} O-O {[%emt 0:01:13]} 6. Bb2 {[%emt 0:00:13]} c5 {[%emt 0:02:36]} 7. cxd5 {[%emt 0:02:57]} Nxd5 {[%emt 0:00:54]} 8. Qc2 {[%emt 0:01:42]} Nb4 {[%emt 0:20:55]} 9. Qb1 {[%emt 0:04:37]} Nd7 {[%emt 0:03:02]} 10. h4 {[%emt 0:07:49]} Nb6 {[%emt 0:25:50]} 11. g4 {[%emt 0:07:18]} f5 {[%emt 0:10:26]} 12. Be2 {[%emt 0:12:29]} Bf6 {[%emt 0:08:23]} 13. Ne5 {[%emt 0:24:03]} fxg4 {[%emt 0:02:09]} 14. Nd3 {[%emt 0:00:30]} 0-1

[Event "Cebanenco Memorial 2019"]
[Site "Chisinau"]
[Date "2019.05.10"]
[Round "4.2"]
[White "Lashkin, Jegor"]
[Black "Svetushkin, Dmitry"]
[Result "0-1"]
[ECO "D15"]
[WhiteElo "2313"]
[BlackElo "2536"]
[Annotator "ChessBase"]
[PlyCount "110"]
[EventDate "2019.05.07"]
[EventCountry "MDA"]
[SourceTitle "playchess.com"]
[Source "ChessBase"]
[SourceQuality "1"]
[TimeControl "5400+30"]

1. Nf3 {[%emt 0:00:00]} d5 {[%emt 0:00:00]} 2. d4 {[%emt 0:00:22]} Nf6 {[%emt 0:00:00]} 3. c4 {[%emt 0:00:10]} c6 {[%emt 0:00:00]} 4. Nc3 {[%emt 0:00:18]} a6 {[%emt 0:00:05]} 5. e3 {[%emt 0:00:49]} b5 {[%emt 0:03:32]} 6. b3 {[%emt 0:00:39]} Bf5 {[%emt 0:01:40]} 7. Ne5 {[%emt 0:10:01]} h6 {[%emt 0:04:14]} 8. Bd3 {[%emt 0:08:13]} Bxd3 {[%emt 0:00:44]} 9. Nxd3 {[%emt 0:00:33]} e6 {[%emt 0:00:25]} 10. O-O {[%emt 0:00:28]} Nbd7 {[%emt 0:01:34]} 11. Qe2 {[%emt 0:12:53]} Be7 {[%emt 0:21:46]} 12. c5 {[%emt 0:12:00]} a5 {[%emt 0:06:21]} 13. a3 {[%emt 0:08:04]} Ne4 {[%emt 0:01:29]} 14. Nd1 {[%emt 0:06:54]} e5 {[%emt 0:01:38]} 15. f3 {[%emt 0:11:27]} Ng5 {[%emt 0:00:47]} 16. f4 {[%emt 0:04:36]} exf4 {[%emt 0:00:50]} 17. exf4 {[%emt 0:00:10]} Ne4 {[%emt 0:01:38]} 18. N1f2 {[%emt 0:01:30]} Ndf6 {[%emt 0:03:59]} 19. Ne5 {[%emt 0:01:41]} Qc7 {[%emt 0:01:30]} 20. Nfd3 {[%emt 0:02:21]} g6 {[%emt 0:03:55]} 21. Be3 {[%emt 0:04:19]} h5 {[%emt 0:01:10]} 22. Ne1 {[%emt 0:03:35]} Qc8 {[%emt 0:04:41]} 23. N1f3 {[%emt 0:00:32]} Ng4 {[%emt 0:00:20]} 24. Qe1 {[%emt 0:00:50]} Rg8 {[%emt 0:07:06]} 25. Nd2 {[%emt 0:02:05]} Qe6 {[%emt 0:02:12]} 26. Nxe4 {[%emt 0:03:35]} dxe4 {[%emt 0:00:32]} 27. a4 {[%emt 0:01:43]} b4 {[%emt 0:11:39]} 28. Nc4 {[%emt 0:00:28]} h4 {[%emt 0:05:25]} 29. Rd1 {[%emt 0:00:56]} h3 {[%emt 0:00:23]} 30. g3 {[%emt 0:01:09]} f5 {[%emt 0:00:47]} 31. Qe2 {[%emt 0:01:53]} Bf6 {[%emt 0:01:05]} 32. d5 {[%emt 0:00:35]} cxd5 {[%emt 0:00:49]} 33. Nd6+ {[%emt 0:00:59]} Kf8 {[%emt 0:03:03]} 34. Bd4 {[%emt 0:00:01]} Kg7 {[%emt 0:02:19]} 35. Rfe1 {[%emt 0:00:24]} Rgd8 {[%emt 0:02:33]} 36. Qb5 {[%emt 0:01:06]} Qd7 {[%emt 0:02:18]} 37. Bxf6+ {[%emt 0:00:20]} Nxf6 {[%emt 0:00:06]} 38. Rd4 {[%emt 0:00:41]} Qc7 {[%emt 0:01:56]} 39. Nb7 {[%emt 0:00:31]} Rdc8 {[%emt 0:00:50]} 40. Rc1 {[%emt 0:00:00]} Qc6 {[%emt 0:00:00]} 41. Nd6 {[%emt 0:00:00]} Rc7 {[%emt 0:00:00]} 42. Qf1 {[%emt 0:00:00]} e3 {[%emt 0:00:00]} 43. Qe2 {[%emt 0:00:00]} Re7 {[%emt 0:00:00]} 44. Kf1 {[%emt 0:00:00]} Re6 {[%emt 0:00:00]} 45. Rc2 {[%emt 0:00:00]} Ra7 {[%emt 0:00:00]} 46. Kg1 {[%emt 0:00:00]} Rae7 {[%emt 0:00:00]} 47. Kf1 {[%emt 0:00:00]} Nd7 {[%emt 0:00:00]} 48. Nb5 {[%emt 0:03:30]} Nxc5 {[%emt 0:00:00]} 49. Kg1 {[%emt 0:00:44]} Qb6 {[%emt 0:00:00]} 50. Rxd5 {[%emt 0:00:18]} Nxb3 {[%emt 0:00:00]} 51. Rc8 {[%emt 0:01:10]} Rc6 {[%emt 0:03:49]} 52. Rcd8 {[%emt 0:00:49]} Rc2 {[%emt 0:00:39]} 53. Qe1 {[%emt 0:00:32]} Rc1 {[%emt 0:00:38]} 54. Rd1 {[%emt 0:00:34]} e2+ {[%emt 0:00:05]} 55. Kh1 {[%emt 0:00:26]} Qc6+ {[%emt 0:00:27]} 0-1

[Event "Cebanenco Memorial 2019"]
[Site "Chisinau"]
[Date "2019.05.10"]
[Round "4.3"]
[White "Schitco, Ivan"]
[Black "Hamitevici, Vladimir"]
[Result "1/2-1/2"]
[ECO "E20"]
[WhiteElo "2437"]
[BlackElo "2476"]
[Annotator "ChessBase"]
[PlyCount "80"]
[EventDate "2019.05.07"]
[EventCountry "MDA"]
[SourceTitle "playchess.com"]
[Source "ChessBase"]
[SourceQuality "1"]
[TimeControl "5400+30"]

1. d4 {[%emt 0:00:00]} Nf6 {[%emt 0:08:14]} 2. c4 {[%emt 0:00:00]} e6 {[%emt 0:00:15]} 3. g3 {[%emt 0:00:05]} c5 {[%emt 0:04:06]} 4. Nf3 {[%emt 0:00:19]} cxd4 {[%emt 0:00:53]} 5. Nxd4 {[%emt 0:00:10]} Bb4+ {[%emt 0:01:49]} 6. Nc3 {[%emt 0:02:03]} O-O {[%emt 0:00:31]} 7. Bg2 {[%emt 0:02:01]} d5 {[%emt 0:00:10]} 8. cxd5 {[%emt 0:15:57]} Nxd5 {[%emt 0:02:44]} 9. Bd2 {[%emt 0:00:39]} Nxc3 {[%emt 0:00:39]} 10. bxc3 {[%emt 0:00:47]} Be7 {[%emt 0:01:00]} 11. O-O {[%emt 0:08:23]} Nd7 {[%emt 0:04:08]} 12. Rb1 {[%emt 0:02:57]} Nb6 {[%emt 0:04:05]} 13. a4 {[%emt 0:04:50]} e5 {[%emt 0:00:34]} 14. a5 {[%emt 0:03:24]} exd4 {[%emt 0:00:26]} 15. axb6 {[%emt 0:00:12]} axb6 {[%emt 0:04:05]} 16. cxd4 {[%emt 0:02:02]} Qxd4 {[%emt 0:00:08]} 17. Bb4 {[%emt 0:03:15]} Qxd1 {[%emt 0:05:00]} 18. Rfxd1 {[%emt 0:00:16]} Bc5 {[%emt 0:00:04]} 19. Rdc1 {[%emt 0:02:01]} Re8 {[%emt 0:03:13]} 20. Bxc5 {[%emt 0:02:10]} bxc5 {[%emt 0:00:09]} 21. e3 {[%emt 0:00:08]} Ra5 {[%emt 0:01:28]} 22. Bxb7 {[%emt 0:02:08]} Be6 {[%emt 0:00:54]} 23. Bc6 {[%emt 0:06:37]} Rc8 {[%emt 0:02:16]} 24. Rb5 {[%emt 0:01:19]} Rxb5 {[%emt 0:01:38]} 25. Bxb5 {[%emt 0:00:09]} c4 {[%emt 0:00:06]} 26. e4 {[%emt 0:03:50]} Rc5 {[%emt 0:06:31]} 27. Ba4 {[%emt 0:00:23]} f5 {[%emt 0:00:34]} 28. Bc2 {[%emt 0:01:12]} fxe4 {[%emt 0:01:59]} 29. Bxe4 {[%emt 0:00:08]} g5 {[%emt 0:00:16]} 30. f3 {[%emt 0:01:39]} h5 {[%emt 0:02:36]} 31. Kf2 {[%emt 0:02:52]} Kg7 {[%emt 0:00:08]} 32. Ke3 {[%emt 0:00:43]} Kf6 {[%emt 0:00:07]} 33. Rb1 {[%emt 0:03:49]} h4 {[%emt 0:04:21]} 34. gxh4 {[%emt 0:04:53]} gxh4 {[%emt 0:00:09]} 35. Kd4 {[%emt 0:00:47]} Rc8 {[%emt 0:00:52]} 36. Rb6 {[%emt 0:01:25]} Rd8+ {[%emt 0:00:08]} 37. Ke3 {[%emt 0:00:51]} Ke7 {[%emt 0:01:21]} 38. Rb5 {[%emt 0:03:33]} Rd1 {[%emt 0:01:13]} 39. f4 {[%emt 0:01:54]} Bf7 {[%emt 0:07:08]} 40. Bf5 {[%emt 0:00:00]} Be6 {[%emt 0:00:00]} 1/2-1/2

[Event "Cebanenco Memorial 2019"]
[Site "Chisinau"]
[Date "2019.05.10"]
[Round "4.4"]
[White "Smirin, Ilia"]
[Black "Miron, Lucian-Costin"]
[Result "1/2-1/2"]
[ECO "C86"]
[WhiteElo "2605"]
[BlackElo "2472"]
[Annotator "ChessBase"]
[PlyCount "79"]
[EventDate "2019.05.07"]
[EventCountry "MDA"]
[SourceTitle "playchess.com"]
[Source "ChessBase"]
[SourceQuality "1"]
[TimeControl "5400+30"]

1. e4 {[%emt 0:10:36]} e5 {[%emt 0:00:00]} 2. Nf3 {[%emt 0:00:20]} Nc6 {[%emt 0:00:00]} 3. Bb5 {[%emt 0:00:11]} a6 {[%emt 0:00:00]} 4. Ba4 {[%emt 0:00:04]} Nf6 {[%emt 0:00:00]} 5. O-O {[%emt 0:00:29]} Be7 {[%emt 0:00:05]} 6. Qe2 {[%emt 0:00:32]} b5 {[%emt 0:04:16]} 7. Bb3 {[%emt 0:02:58]} d6 {[%emt 0:00:06]} 8. c3 {[%emt 0:00:18]} O-O {[%emt 0:00:58]} 9. Rd1 {[%emt 0:00:17]} Na5 {[%emt 0:06:22]} 10. Bc2 {[%emt 0:00:15]} c5 {[%emt 0:00:03]} 11. d4 {[%emt 0:00:36]} Qc7 {[%emt 0:00:33]} 12. d5 {[%emt 0:00:45]} Bd7 {[%emt 0:19:02]} 13. b3 {[%emt 0:01:09]} Nb7 {[%emt 0:08:56]} 14. Nbd2 {[%emt 0:07:25]} Nh5 {[%emt 0:00:34]} 15. g3 {[%emt 0:02:07]} g6 {[%emt 0:03:06]} 16. Nf1 {[%emt 0:00:47]} Ng7 {[%emt 0:03:23]} 17. Bh6 {[%emt 0:03:36]} f6 {[%emt 0:02:42]} 18. a4 {[%emt 0:00:09]} Rfb8 {[%emt 0:07:48]} 19. axb5 {[%emt 0:05:28]} axb5 {[%emt 0:01:06]} 20. Bd3 {[%emt 0:00:38]} Na5 {[%emt 0:08:34]} 21. N3d2 {[%emt 0:04:12]} b4 {[%emt 0:04:37]} 22. cxb4 {[%emt 0:05:03]} Rxb4 {[%emt 0:00:14]} 23. Nc4 {[%emt 0:00:18]} Rbb8 {[%emt 0:00:04]} 24. Nfd2 {[%emt 0:01:16]} Nb7 {[%emt 0:09:08]} 25. Qf1 {[%emt 0:15:23]} Nd8 {[%emt 0:05:52]} 26. Rxa8 {[%emt 0:00:39]} Rxa8 {[%emt 0:00:05]} 27. Ra1 {[%emt 0:00:10]} Rxa1 {[%emt 0:05:49]} 28. Qxa1 {[%emt 0:00:11]} Ne8 {[%emt 0:01:28]} 29. Be3 {[%emt 0:02:14]} Qb7 {[%emt 0:01:58]} 30. Qa5 {[%emt 0:02:31]} Nf7 {[%emt 0:04:22]} 31. Nb6 {[%emt 0:02:49]} Bd8 {[%emt 0:00:30]} 32. Ndc4 {[%emt 0:00:12]} Bh3 {[%emt 0:01:29]} 33. f3 {[%emt 0:04:57]} Nc7 {[%emt 0:01:41]} 34. g4 {[%emt 0:07:47]} Na6 {[%emt 0:01:20]} 35. Qb5 {[%emt 0:05:12]} Kg7 {[%emt 0:00:30]} 36. Qd7 {[%emt 0:05:30]} Qxd7 {[%emt 0:00:00]} 37. Nxd7 {[%emt 0:00:04]} Nb4 {[%emt 0:00:00]} 38. Be2 {[%emt 0:00:24]} f5 {[%emt 0:00:33]} 39. Ndb6 {[%emt 0:01:03]} f4 {[%emt 0:01:14]} 40. Bf2 {[%emt 0:00:00]} 1/2-1/2

[Event "Cebanenco Memorial 2019"]
[Site "Chisinau"]
[Date "2019.05.10"]
[Round "4.5"]
[White "Macovei, Andrei"]
[Black "Morozov, Nichita"]
[Result "1/2-1/2"]
[ECO "C41"]
[WhiteElo "2432"]
[BlackElo "2371"]
[Annotator "ChessBase"]
[PlyCount "66"]
[EventDate "2019.05.07"]
[EventCountry "MDA"]
[SourceTitle "playchess.com"]
[Source "ChessBase"]
[SourceQuality "1"]
[TimeControl "5400+30"]

1. e4 {[%emt 0:00:00]} d6 {[%emt 0:00:00]} 2. d4 {[%emt 0:00:28]} Nf6 {[%emt 0:00:00]} 3. Nc3 {[%emt 0:00:04]} e5 {[%emt 0:00:00]} 4. Nf3 {[%emt 0:00:10]} Nbd7 {[%emt 0:00:00]} 5. Bc4 {[%emt 0:00:05]} Be7 {[%emt 0:00:00]} 6. a4 {[%emt 0:00:05]} a5 {[%emt 0:00:00]} 7. O-O {[%emt 0:00:12]} O-O {[%emt 0:00:01]} 8. Re1 {[%emt 0:05:05]} c6 {[%emt 0:00:05]} 9. h3 {[%emt 0:01:14]} Nb6 {[%emt 0:00:10]} 10. Ba2 {[%emt 0:00:54]} Nfd7 {[%emt 0:00:06]} 11. Be3 {[%emt 0:00:54]} exd4 {[%emt 0:00:05]} 12. Nxd4 {[%emt 0:00:08]} Nc5 {[%emt 0:00:05]} 13. Qh5 {[%emt 0:00:03]} Nbxa4 {[%emt 0:03:42]} 14. Nxa4 {[%emt 0:00:09]} Nxa4 {[%emt 0:00:03]} 15. Nf3 {[%emt 0:00:08]} Nc5 {[%emt 0:15:28]} 16. Ng5 {[%emt 0:09:11]} Bxg5 {[%emt 0:03:40]} 17. Bxg5 {[%emt 0:00:10]} Qc7 {[%emt 0:01:37]} 18. Bf4 {[%emt 0:05:47]} Nd7 {[%emt 0:03:26]} 19. Bg3 {[%emt 0:32:37]} Nf6 {[%emt 0:04:38]} 20. Qh4 {[%emt 0:02:32]} Be6 {[%emt 0:05:14]} 21. Bxe6 {[%emt 0:03:44]} fxe6 {[%emt 0:01:16]} 22. e5 {[%emt 0:00:01]} dxe5 {[%emt 0:00:33]} 23. Rxe5 {[%emt 0:00:07]} Qd7 {[%emt 0:01:47]} 24. Qc4 {[%emt 0:04:41]} Nd5 {[%emt 0:02:17]} 25. Qe2 {[%emt 0:00:33]} Rf5 {[%emt 0:20:28]} 26. Rxe6 {[%emt 0:03:27]} Raf8 {[%emt 0:00:06]} 27. Re4 {[%emt 0:07:47]} Qd8 {[%emt 0:10:07]} 28. Qd2 {[%emt 0:05:40]} Nf6 {[%emt 0:11:57]} 29. Qxd8 {[%emt 0:03:20]} Rxd8 {[%emt 0:00:01]} 30. Re7 {[%emt 0:00:44]} Rd2 {[%emt 0:05:24]} 31. Rxb7 {[%emt 0:01:39]} Ne4 {[%emt 0:00:05]} 32. Re1 {[%emt 0:02:30]} Nxg3 {[%emt 0:00:04]} 33. fxg3 {[%emt 0:00:53]} h5 {[%emt 0:00:01]} 1/2-1/2

[Event "Cebanenco Memorial 2019"]
[Site "Chisinau"]
[Date "2019.05.13"]
[Round "5.2"]
[White "Miron, Lucian-Costin"]
[Black "Macovei, Andrei"]
[Result "1/2-1/2"]
[ECO "E35"]
[WhiteElo "2472"]
[BlackElo "2432"]
[Annotator "ChessBase"]
[PlyCount "61"]
[EventDate "2019.05.07"]
[EventCountry "MDA"]
[SourceTitle "playchess.com"]
[Source "ChessBase"]
[SourceQuality "1"]
[TimeControl "5400+30"]

1. d4 {[%emt 0:00:40]} Nf6 {[%emt 0:00:00]} 2. c4 {[%emt 0:00:03]} e6 {[%emt 0:00:00]} 3. Nc3 {[%emt 0:00:02]} Bb4 {[%emt 0:00:00]} 4. Qc2 {[%emt 0:00:04]} d5 {[%emt 0:00:00]} 5. cxd5 {[%emt 0:00:04]} exd5 {[%emt 0:00:00]} 6. Bg5 {[%emt 0:00:13]} h6 {[%emt 0:00:04]} 7. Bh4 {[%emt 0:00:06]} c5 {[%emt 0:00:36]} 8. dxc5 {[%emt 0:00:05]} g5 {[%emt 0:00:07]} 9. Bg3 {[%emt 0:00:06]} Ne4 {[%emt 0:00:04]} 10. e3 {[%emt 0:01:45]} Qa5 {[%emt 0:01:10]} 11. Rc1 {[%emt 0:01:50]} Qxa2 {[%emt 0:01:45]} 12. Bb5+ {[%emt 0:04:21]} Bd7 {[%emt 0:07:03]} 13. Bxd7+ {[%emt 0:00:19]} Nxd7 {[%emt 0:00:06]} 14. Nge2 {[%emt 0:00:04]} Nxc3 {[%emt 0:03:00]} 15. Nxc3 {[%emt 0:00:22]} Qc4 {[%emt 0:00:05]} 16. Rd1 {[%emt 0:00:17]} Nxc5 {[%emt 0:03:54]} 17. Rd4 {[%emt 0:20:05]} Qa6 {[%emt 0:01:29]} 18. h4 {[%emt 0:21:30]} g4 {[%emt 0:07:50]} 19. f3 {[%emt 0:07:24]} gxf3 {[%emt 0:51:25]} 20. gxf3 {[%emt 0:00:30]} Rg8 {[%emt 0:00:30]} 21. Kf2 {[%emt 0:13:18]} Bxc3 {[%emt 0:00:45]} 22. bxc3 {[%emt 0:02:24]} O-O-O {[%emt 0:01:03]} 23. Qf5+ {[%emt 0:05:02]} Ne6 {[%emt 0:05:11]} 24. Rhd1 {[%emt 0:05:27]} Qc6 {[%emt 0:03:20]} 25. R4d2 {[%emt 0:05:34]} b6 {[%emt 0:05:41]} 26. Rxd5 {[%emt 0:08:54]} Rxd5 {[%emt 0:00:50]} 27. Rxd5 {[%emt 0:01:57]} Qxc3 {[%emt 0:00:30]} 28. Qxf7 {[%emt 0:00:30]} Qc2+ {[%emt 0:00:59]} 29. Ke1 {[%emt 0:00:22]} Qc1+ {[%emt 0:03:00]} 30. Kf2 {[%emt 0:00:15]} Qc2+ {[%emt 0:02:10]} 31. Ke1 {[%emt 0:00:06]} 1/2-1/2

[Event "Cebanenco Memorial 2019"]
[Site "Chisinau"]
[Date "2019.05.16"]
[Round "8.1"]
[White "Fedorov, Alexei"]
[Black "Schitco, Ivan"]
[Result "0-1"]
[ECO "B07"]
[WhiteElo "2566"]
[BlackElo "2437"]
[Annotator "ChessBase"]
[PlyCount "34"]
[EventDate "2019.05.07"]
[EventCountry "MDA"]
[SourceTitle "playchess.com"]
[Source "ChessBase"]
[SourceQuality "1"]
[TimeControl "5400+30"]

1. e4 {[%emt 0:00:00]} d6 {[%emt 0:00:00]} 2. d4 {[%emt 0:00:00]} Nf6 {[%emt 0:00:00]} 3. f3 {[%emt 0:00:06]} c5 {[%emt 0:00:24]} 4. Ne2 {[%emt 0:03:33]} e6 {[%emt 0:00:21]} 5. c4 {[%emt 0:04:14]} d5 {[%emt 0:00:14]} 6. cxd5 {[%emt 0:07:29]} exd5 {[%emt 0:00:29]} 7. e5 {[%emt 0:02:50]} Nfd7 {[%emt 0:00:39]} 8. f4 {[%emt 0:00:06]} Nc6 {[%emt 0:00:37]} 9. Be3 {[%emt 0:06:02]} Nb6 {[%emt 0:08:16]} 10. Bf2 {[%emt 0:22:47]} Nc4 {[%emt 0:09:30]} 11. dxc5 {[%emt 0:10:19]} Qa5+ {[%emt 0:28:54]} 12. Nec3 {[%emt 0:03:59]} Bxc5 {[%emt 0:04:21]} 13. Bxc4 {[%emt 0:08:27]} Bxf2+ {[%emt 0:01:12]} 14. Kxf2 {[%emt 0:00:04]} dxc4 {[%emt 0:03:07]} 15. Nd2 {[%emt 0:02:13]} Qb6+ {[%emt 0:07:16]} 16. Ke1 {[%emt 0:00:30]} Be6 {[%emt 0:02:21]} 17. f5 {[%emt 0:01:28]} Nxe5 {[%emt 0:08:51]} 0-1

[Event "Cebanenco Memorial 2019"]
[Site "Chisinau"]
[Date "2019.05.16"]
[Round "8.2"]
[White "Smirin, Ilia"]
[Black "Lashkin, Jegor"]
[Result "1-0"]
[ECO "B70"]
[WhiteElo "2605"]
[BlackElo "2313"]
[Annotator "ChessBase"]
[PlyCount "63"]
[EventDate "2019.05.07"]
[EventCountry "MDA"]
[SourceTitle "playchess.com"]
[Source "ChessBase"]
[SourceQuality "1"]
[TimeControl "5400+30"]

1. e4 {[%emt 0:02:40]} c5 {[%emt 0:00:00]} 2. Nc3 {[%emt 0:00:14]} d6 {[%emt 0:02:56]} 3. Nge2 {[%emt 0:00:19]} Nf6 {[%emt 0:00:09]} 4. g3 {[%emt 0:00:19]} g6 {[%emt 0:01:34]} 5. d4 {[%emt 0:01:51]} cxd4 {[%emt 0:00:08]} 6. Nxd4 {[%emt 0:00:05]} Bg7 {[%emt 0:00:13]} 7. Bg2 {[%emt 0:00:39]} O-O {[%emt 0:00:13]} 8. O-O {[%emt 0:00:32]} Nc6 {[%emt 0:01:48]} 9. Nde2 {[%emt 0:00:43]} Bd7 {[%emt 0:14:52]} 10. h3 {[%emt 0:02:28]} Rc8 {[%emt 0:02:11]} 11. Re1 {[%emt 0:02:46]} Re8 {[%emt 0:03:41]} 12. a4 {[%emt 0:03:23]} a6 {[%emt 0:04:30]} 13. Nd5 {[%emt 0:10:42]} b5 {[%emt 0:17:31]} 14. axb5 {[%emt 0:01:17]} axb5 {[%emt 0:00:01]} 15. Be3 {[%emt 0:02:07]} Nxd5 {[%emt 0:12:38]} 16. exd5 {[%emt 0:00:29]} Na5 {[%emt 0:00:42]} 17. Bd4 {[%emt 0:04:50]} Bxd4 {[%emt 0:07:06]} 18. Nxd4 {[%emt 0:01:28]} Qb6 {[%emt 0:00:27]} 19. b3 {[%emt 0:01:38]} Nb7 {[%emt 0:06:34]} 20. Qd2 {[%emt 0:13:27]} Nd8 {[%emt 0:04:30]} 21. Rad1 {[%emt 0:08:06]} e5 {[%emt 0:02:23]} 22. dxe6 {[%emt 0:00:15]} Nxe6 {[%emt 0:00:11]} 23. Nf3 {[%emt 0:00:45]} Bc6 {[%emt 0:03:14]} 24. h4 {[%emt 0:00:25]} Qb7 {[%emt 0:00:49]} 25. Re3 {[%emt 0:01:06]} Be4 {[%emt 0:02:31]} 26. Ne1 {[%emt 0:05:12]} Bxg2 {[%emt 0:00:58]} 27. Nxg2 {[%emt 0:00:14]} Qc6 {[%emt 0:00:39]} 28. Re2 {[%emt 0:01:43]} Ng7 {[%emt 0:05:15]} 29. Ne3 {[%emt 0:01:46]} Qf3 {[%emt 0:00:10]} 30. Rde1 {[%emt 0:00:51]} Re6 {[%emt 0:02:19]} 31. Nd5 {[%emt 0:04:26]} Rd8 {[%emt 0:01:05]} 32. Re3 {[%emt 0:00:55]} 1-0

[Event "Cebanenco Memorial 2019"]
[Site "Chisinau"]
[Date "2019.05.16"]
[Round "8.3"]
[White "Macovei, Andrei"]
[Black "Jobava, Baadur"]
[Result "1/2-1/2"]
[ECO "C92"]
[WhiteElo "2432"]
[BlackElo "2618"]
[Annotator "ChessBase"]
[PlyCount "26"]
[EventDate "2019.05.07"]
[EventCountry "MDA"]
[SourceTitle "playchess.com"]
[Source "ChessBase"]
[SourceQuality "1"]
[TimeControl "5400+30"]

1. e4 {[%emt 0:01:35]} e5 {[%emt 0:09:18]} 2. Nf3 {[%emt 0:00:04]} Nc6 {[%emt 0:00:03]} 3. Bb5 {[%emt 0:00:03]} a6 {[%emt 0:00:05]} 4. Ba4 {[%emt 0:00:02]} Nf6 {[%emt 0:00:07]} 5. O-O {[%emt 0:00:04]} b5 {[%emt 0:00:03]} 6. Bb3 {[%emt 0:00:03]} Be7 {[%emt 0:00:06]} 7. Re1 {[%emt 0:00:07]} d6 {[%emt 0:00:05]} 8. c3 {[%emt 0:00:03]} O-O {[%emt 0:00:06]} 9. h3 {[%emt 0:00:02]} Re8 {[%emt 0:00:06]} 10. Ng5 {[%emt 0:00:07]} Rf8 {[%emt 0:00:05]} 11. Nf3 {[%emt 0:00:03]} Re8 {[%emt 0:00:05]} 12. Ng5 {[%emt 0:00:02]} Rf8 {[%emt 0:00:04]} 13. Nf3 {[%emt 0:00:03]} Re8 {[%emt 0:00:04]} 1/2-1/2